bitfinex/quotes_SOLUSD_20260105
["timestamp","ask_amount","ask_price","bid_price","bid_amount"]
[1767605633665,1.50398208,135.06,135.02,0.68080729]
[1767605633866,0.77898207,135.06,135.02,0.68080729]
[1767605634784,0.77898207,135.06,135.02,8.08700704]
[1767605635191,0.77898207,135.06,135.02,11.43549737]
[1767605635884,0.77898207,135.06,135.03,0.68080729]
[1767605636187,0.77898207,135.06,135.02,11.43549737]
[1767605636684,0.77898207,135.06,135.03,0.68080729]
[1767605637076,0.77898207,135.06,135.03,8.08639517]
[1767605637274,0.1,135.06,135.04,0.68080729]
[1767605638771,0.1,135.06,135.03,10.75407821]
[1767605639092,0.77898207,135.06,135.03,11.4348855]
[1767605639395,0.77898207,135.06,135.03,8.08639517]
[1767605644796,0.1,135.06,135.04,0.68001012]
[1767605645287,0.1,135.06,135.04,14.16001012]
[1767605646380,0.82478891,135.06,135.04,13.48]
[1767605647067,0.82478891,135.06,135.02,8.08614299]
[1767605647272,0.82478891,135.06,135.02,21.56614299]
[1767605647572,0.72478891,135.05,135.02,21.56614299]
[1767605647978,0.72478891,135.02,135.0,12.2]
[1767605648184,0.72478891,135.02,135.01,13.48]
[1767605648590,0.72478891,135.03,135.01,13.48]
[1767605650183,0.72478891,135.04,135.01,14.16001012]
[1767605650697,4.07327924,135.04,135.01,13.48]
[1767605651003,0.72478891,135.03,134.99,0.68001012]
[1767605651188,0.72478891,135.02,134.99,14.16001012]
[1767605651894,0.72478891,135.02,134.99,21.56794274]
[1767605652511,4.07327924,135.04,135.0,0.68001012]
[1767605659791,4.07327924,135.04,135.01,0.68001012]
[1767605665508,4.07327924,135.03,135.0,0.68001012]
[1767605668119,3.34849033,135.04,135.01,0.68001012]
[1767605668417,4.07327924,135.05,135.01,0.68001012]
[1767605672121,0.66854193,135.04,135.01,0.68001012]
[1767605674710,0.66854193,135.03,135.0,0.67202837]
[1767605676827,0.66854193,135.03,134.99,20.8877577]
[1767605677126,0.66854193,135.03,134.99,21.55978607]
[1767605677926,0.66854193,135.03,135.0,0.67202837]
[1767605679623,0.66854193,135.03,134.99,21.55978607]
[1767605679932,0.66854193,135.03,135.0,0.67202837]
[1767605680124,4.01703226,135.03,135.0,0.67202837]
[1767605680620,0.66854193,135.03,135.0,0.67202837]
[1767605688629,0.66854193,135.03,134.99,20.8877577]
[1767605688808,0.66854193,135.03,134.99,21.55978607]
[1767605690937,0.66854193,135.03,135.0,0.67202837]
[1767605691739,0.66854193,135.03,135.0,8.07938782]
[1767605692316,4.04146017,135.04,135.01,0.69419999]
[1767605692832,0.69296984,135.04,135.01,0.69419999]
[1767605695346,1.51796985,135.06,135.02,0.69419999]
[1767605695646,1.51796985,135.06,135.04,0.69419999]
[1767605695647,0.1,135.06,135.04,0.69419999]
[1767605695819,0.1,135.06,135.04,0.66420001]
[1767605699425,0.1,135.06,135.05,0.69419999]
[1767605701831,0.69296984,135.08,135.05,14.17419999]
[1767605702033,0.69296984,135.08,135.05,14.14420004]
[1767605702446,0.69296984,135.08,135.04,0.74052132]
[1767605702754,2.84867831,135.07,135.02,15.62357356]
[1767605703936,2.84867831,135.07,135.02,23.02953279]
[1767605704238,2.84867831,135.07,135.03,0.59500012]
[1767605704655,0.70510475,135.07,135.04,0.59500012]
[1767605705728,0.70510475,135.08,135.04,0.59500012]
[1767605705935,0.80510475,135.09,135.04,2.73857368]
[1767605706243,0.80510475,135.09,135.05,14.07500012]
[1767605706428,0.80510475,135.09,135.05,23.62316364]
[1767605706634,0.80510475,135.09,135.06,0.59500012]
[1767605707143,0.1,135.11,135.08,0.49500012]
[1767605707451,0.1,135.11,135.09,16.01857368]
[1767605708042,0.1,135.11,135.09,13.87500012]
[1767605712056,0.80510475,135.13,135.1,0.39500012]
[1767605712252,0.80510475,135.13,135.09,15.62357356]
[1767605712253,0.1,135.14,135.12,0.29500012]
[1767605712442,0.1,135.14,135.12,0.26500013]
[1767605712647,0.03499987,135.15,135.13,2.14357356]
[1767605713245,0.03499987,135.15,135.12,23.02429474]
[1767605714250,0.03499987,135.15,135.12,20.88072118]
[1767605714456,0.03499987,135.15,135.13,2.14357356]
[1767605716358,0.03499987,135.15,135.12,20.88072118]
[1767605716359,0.03499987,135.15,135.12,23.02429474]
[1767605719054,0.03499987,135.15,135.13,0.74002812]
[1767605719254,0.03499987,135.15,135.13,10.28380715]
[1767605721862,0.03499987,135.15,135.13,0.74002812]
[1767605725349,0.03499987,135.15,135.13,10.28380792]
[1767605727660,0.03499987,135.15,135.14,2.14357356]
[1767605728100,0.1,135.16,135.14,2.14357356]
[1767605728373,0.1,135.16,135.15,13.48]
[1767605730874,1e-08,135.16,135.15,20.87918608]
[1767605731178,1e-08,135.17,135.15,35.96267824]
[1767605736375,0.66803429,135.16,135.13,12.2]
[1767605736572,0.66803429,135.16,135.14,13.46]
[1767605736961,0.66803429,135.15,135.14,12.735]
[1767605737371,0.66803429,135.15,135.14,12.01]
[1767605737869,2.81160785,135.15,135.11,0.66597097]
[1767605738059,2.81160785,135.15,135.11,14.12597097]
[1767605738459,0.15539605,135.14,135.11,14.12597097]
[1767605739068,0.15539605,135.14,135.11,21.52732933]
[1767605739266,0.66803429,135.15,135.11,21.52732933]
[1767605739463,2.81160786,135.17,135.13,0.66597097]
[1767605739760,2.81160786,135.17,135.14,14.12597097]
[1767605739761,1e-08,135.17,135.14,14.12597097]
[1767605741562,1e-08,135.17,135.14,21.52564541]
[1767605742486,2.14357357,135.17,135.14,21.52564541]
[1767605743278,2.14357357,135.17,135.14,14.12597097]
[1767605743865,2.29896962,135.17,135.14,14.12597097]
[1767605745586,0.1,135.18,135.14,14.12597097]
[1767605745775,2.14357356,135.16,135.14,14.12597097]
[1767605746866,0.1,135.18,135.14,21.52569656]
[1767605746867,2.14357356,135.17,135.14,21.52569656]
[1767605748583,2.24257356,135.17,135.14,14.12597097]
[1767605749188,2.14357356,135.16,135.14,13.46]
[1767605749384,2.24257356,135.17,135.14,13.46]
[1767605750662,0.1,135.18,135.14,13.46]
[1767605750663,2.14357356,135.15,135.14,13.46]
[1767605750888,0.56489791,135.16,135.12,33.72666773]
[1767605751168,2.14357356,135.15,135.12,33.72666773]
[1767605751384,0.56489791,135.16,135.12,33.72666773]
[1767605751585,2.14357356,135.15,135.12,33.72666773]
[1767605751787,0.56489791,135.16,135.12,33.72666773]
[1767605752092,2.24723253,135.15,135.12,26.32597097]
[1767605752790,2.24723253,135.15,135.12,14.12597097]
[1767605752977,2.24723253,135.15,135.12,13.46]
[1767605753493,2.14357356,135.14,135.12,13.46]
[1767605753783,0.10365897,135.15,135.12,13.46]
[1767605753988,2.70385909,135.14,135.11,0.68464617]
[1767605754467,3.34452063,135.14,135.11,8.08588731]
[1767605754868,0.82500001,135.18,135.12,7.40082212]
[1767605755081,3.34452063,135.15,135.12,7.40082212]
[1767605755981,3.34452063,135.15,135.12,0.68464617]
[1767605756185,0.82500001,135.18,135.12,0.68464617]
[1767605756485,3.34452063,135.15,135.12,0.68464617]
[1767605758377,0.82500001,135.18,135.12,0.68464617]
[1767605758583,3.34452063,135.15,135.12,8.08534701]
[1767605758892,0.82500001,135.18,135.13,0.68464617]
[1767605759192,3.34452063,135.17,135.13,14.14464617]
[1767605759496,3.34452063,135.17,135.14,0.68464617]
[1767605759884,3.34452063,135.17,135.13,14.14464617]
[1767605760182,3.34452063,135.17,135.13,21.5444659]
[1767605760490,3.44452063,135.18,135.14,0.68464617]
[1767605761069,0.1,135.18,135.15,0.67215427]
[1767605761290,0.1,135.19,135.16,14.13215427]
[1767605762282,0.1,135.19,135.16,21.53035992]
[1767605769395,0.1,135.19,135.17,0.67215427]
[1767605769599,0.72500001,135.24,135.18,0.67215427]
[1767605769799,3.34452063,135.21,135.18,0.67215427]
[1767605770181,3.34452063,135.2,135.17,12.87215427]
[1767605770390,0.72500001,135.23,135.17,12.2]
[1767605770699,3.34452063,135.2,135.17,12.2]
[1767605771402,3.34452063,135.2,135.17,19.59807531]
[1767605771604,3.34452063,135.2,135.17,12.2]
[1767605772698,3.34452063,135.2,135.17,19.59804452]
[1767605773204,3.34452063,135.2,135.17,7.39804452]
[1767605775002,3.34452063,135.19,135.16,26.33215427]
[1767605775305,3.34452063,135.18,135.16,25.66]
[1767605775487,8.11985951,135.23,135.14,0.67215427]
[1767605775488,3.34452063,135.17,135.14,0.67215427]
[1767605775683,3.34452063,135.16,135.13,21.53224633]
[1767605777209,3.34452063,135.17,135.13,21.53224633]
[1767605779911,3.34452063,135.16,135.13,21.53224633]
[1767605780300,3.34452063,135.16,135.13,13.46]
[1767605780506,3.34452063,135.16,135.13,21.53206757]
[1767605785200,3.34452063,135.17,135.13,21.53206757]
[1767605785515,0.72500001,135.2,135.13,21.53206757]
[1767605785813,3.34452063,135.17,135.13,21.53206757]
[1767605786592,3.34452063,135.16,135.13,21.53206757]
[1767605786792,0.72500001,135.2,135.13,21.53206757]
[1767605787010,3.34452063,135.16,135.13,21.53206757]
[1767605788701,0.72500001,135.2,135.13,21.53206757]
[1767605789008,3.34452063,135.17,135.13,21.53206757]
[1767605789213,3.34452063,135.16,135.13,21.53206757]
[1767605789595,3.34452063,135.16,135.14,0.67215427]
[1767605790299,3.34452063,135.16,135.13,21.53206757]
[1767605790711,3.34452063,135.16,135.14,0.70184137]
[1767605790918,3.34452063,135.16,135.13,21.56175467]
[1767605793413,3.34452063,135.16,135.14,0.70184137]
[1767605793595,3.34452063,135.16,135.13,21.56175467]
[1767605793798,3.34452063,135.16,135.14,0.70184137]
[1767605798022,0.72500001,135.2,135.14,0.70184137]
[1767605798203,3.34452063,135.17,135.15,0.70184137]
[1767605799023,0.72500001,135.2,135.15,0.70184137]
[1767605799224,3.34452063,135.21,135.17,0.70184137]
[1767605799408,3.34452063,135.22,135.17,0.70184137]
[1767605799720,8.11882318,135.25,135.17,0.70184137]
[1767605799929,3.34452063,135.22,135.17,0.70184137]
[1767605800617,3.34452063,135.22,135.18,0.70184137]
[1767605802513,0.72500001,135.24,135.18,0.70184137]
[1767605802714,3.34452063,135.22,135.18,0.70184137]
[1767605807531,3.34452063,135.21,135.18,0.70184137]
[1767605813639,3.34452063,135.2,135.17,0.65395609]
[1767605813941,11.46381174,135.24,135.16,20.85850021]
[1767605813942,3.34452063,135.19,135.16,14.11395609]
[1767605814640,2.13915042,135.19,135.16,14.11395609]
[1767605816053,2.13915042,135.2,135.16,14.11395609]
[1767605816248,2.13915042,135.2,135.17,0.65395609]
[1767605822043,2.13915042,135.19,135.17,0.65395609]
[1767605824339,2.13915042,135.19,135.17,0.5939561]
[1767605827346,2.20846883,135.19,135.15,0.72037273]
[1767605828942,2.13915042,135.16,135.13,0.72037273]
[1767605829148,2.20846883,135.16,135.13,0.72037273]
[1767605829536,2.13915042,135.16,135.13,0.72037273]
[1767605830848,2.13915042,135.15,135.13,0.72037273]
[1767605831355,2.13915042,135.16,135.13,0.72037273]
[1767605832051,2.20846883,135.16,135.13,0.72037273]
[1767605832350,2.13915042,135.15,135.13,0.72037273]
[1767605836642,0.72500001,135.17,135.13,0.72037273]
[1767605836842,2.13915042,135.15,135.13,0.72037273]
[1767605837049,0.72500001,135.17,135.13,0.72037273]
[1767605837353,2.13915042,135.17,135.13,0.72037273]
[1767605837529,2.13915042,135.17,135.14,0.72037273]
[1767605837737,2.13915042,135.16,135.14,0.72037273]
[1767605837945,8.12160808,135.2,135.14,0.72037273]
[1767605838153,2.13915042,135.16,135.14,0.72037273]
[1767605839245,8.12160808,135.2,135.14,0.72037273]
[1767605839447,2.13915042,135.16,135.14,0.72037273]
[1767605839649,8.12160808,135.2,135.14,0.72037273]
[1767605839851,2.13915042,135.16,135.14,0.72037273]
[1767605840049,8.12160808,135.2,135.14,0.72037273]
[1767605840355,2.13915042,135.16,135.14,0.72037273]
[1767605840560,8.12160808,135.2,135.14,0.72037273]
[1767605840762,2.13915042,135.16,135.14,0.72037273]
[1767605841058,8.12160808,135.2,135.14,0.72037273]
[1767605841250,2.13915042,135.16,135.14,0.72037273]
[1767605841453,8.12160808,135.2,135.14,0.72037273]
[1767605841651,2.13915042,135.16,135.14,0.72037273]
[1767605841840,2.13915042,135.16,135.15,0.72037273]
[1767605842155,2.13915042,135.17,135.15,0.72037273]
[1767605842854,2.13915042,135.17,135.14,0.72037273]
[1767605843754,2.13915042,135.16,135.12,0.72037273]
[1767605844052,2.13915042,135.14,135.11,25.66]
[1767605844261,2.13915042,135.14,135.11,13.46]
[1767605845454,0.72500001,135.16,135.11,13.46]
[1767605845657,2.13915042,135.14,135.11,13.46]
[1767605845857,2.13915042,135.14,135.11,14.18037273]
[1767605846165,2.13915042,135.14,135.12,0.72037273]
[1767605850141,0.72500001,135.17,135.12,0.72037273]
[1767605850348,2.13915042,135.14,135.12,0.72037273]
[1767605851551,2.13915042,135.16,135.12,0.72037273]
[1767605852449,0.72500001,135.18,135.11,21.55034179]
[1767605852650,2.13915042,135.16,135.12,7.40082643]
[1767605852956,2.13915042,135.16,135.13,0.68931484]
[1767605855657,2.13915042,135.17,135.13,0.68931484]
[1767605855869,2.13915042,135.16,135.13,0.68931484]
[1767605856571,0.72500001,135.19,135.14,0.68931484]
[1767605856747,2.13915042,135.18,135.14,0.68931484]
[1767605856952,2.13915042,135.17,135.14,0.68931484]
[1767605857868,8.12148951,135.2,135.14,0.68931484]
[1767605858052,2.13915042,135.17,135.14,0.68931484]
[1767605860568,2.13915042,135.16,135.14,0.68931484]
[1767605860754,0.72500001,135.2,135.15,0.68931484]
[1767605861073,2.13915042,135.16,135.15,0.68931484]
[1767605861374,0.72500001,135.2,135.15,0.68931484]
[1767605861581,2.13915042,135.16,135.15,0.68931484]
[1767605861776,0.72500001,135.2,135.15,0.68931484]
[1767605862074,2.23815042,135.16,135.11,12.2]
[1767605862267,2.13915042,135.14,135.09,44.18557879]
[1767605862458,0.099,135.16,135.09,44.18557879]
[1767605862778,2.13915042,135.15,135.1,7.4019245]
[1767605863164,0.68931484,135.18,135.1,25.90673575]
[1767605863370,2.13915042,135.16,135.1,28.04588617]
[1767605864271,2.13915042,135.16,135.11,0.68931484]
[1767605864473,2.13915042,135.16,135.13,0.68931484]
[1767605864769,2.13915042,135.16,135.14,0.68931484]
[1767605865358,0.099,135.17,135.14,0.68931484]
[1767605865557,2.23815042,135.17,135.14,0.68931484]
[1767605866975,0.099,135.17,135.14,0.68931484]
[1767605867182,2.23815042,135.17,135.14,0.68931484]
[1767605867680,2.13915042,135.16,135.14,0.68931484]
[1767605867857,0.099,135.17,135.14,0.68931484]
[1767605868056,2.13915042,135.16,135.14,0.68931484]
[1767605868375,0.099,135.17,135.14,0.68931484]
[1767605868580,2.13915042,135.16,135.14,0.68931484]
[1767605868781,0.099,135.17,135.14,0.68931484]
[1767605868971,2.13915042,135.16,135.14,0.68931484]
[1767605869975,0.099,135.17,135.12,33.08064176]
[1767605870181,2.82256211,135.16,135.13,0.68931484]
[1767605870377,0.72500001,135.19,135.13,0.68931484]
[1767605870703,2.13915042,135.15,135.13,0.68931484]
[1767605871778,2.13915042,135.15,135.12,21.5699566]
[1767605871986,2.13915042,135.15,135.13,0.68931484]
[1767605872373,0.72500001,135.18,135.13,0.68931484]
[1767605872580,2.13915042,135.15,135.13,0.68931484]
[1767605872774,0.72500001,135.18,135.13,0.68931484]
[1767605872983,2.13915042,135.15,135.13,0.68931484]
[1767605873194,0.72500001,135.18,135.13,0.68931484]
[1767605873487,2.13915042,135.15,135.13,0.68931484]
[1767605873686,8.35013837,135.12,135.0,0.2]
[1767605873867,2.13915042,135.05,135.03,13.48]
[1767605875268,2.13915042,135.04,135.03,13.48]
[1767605875469,2.13915042,135.04,135.0,7.60722356]
[1767605875685,2.13915042,135.04,135.02,0.71545692]
[1767605876585,3.34950217,135.04,135.02,0.71545692]
[1767605877292,7.4031683,135.08,135.02,0.71545692]
[1767605877293,3.34950217,135.05,135.02,0.71545692]
[1767605878892,7.40247242,135.09,135.02,0.71545692]
[1767605879091,3.34950217,135.05,135.02,0.71545692]
[1767605880379,7.40247242,135.09,135.02,0.71545692]
[1767605880692,25.33067738,135.1,135.03,0.6649957]
[1767605880877,3.34950217,135.08,135.05,0.6649957]
[1767605881073,0.92517208,135.11,135.05,0.6649957]
[1767605881285,3.34950217,135.08,135.05,0.6649957]
[1767605881687,3.34950217,135.09,135.05,0.6649957]
[1767605881994,3.34950217,135.12,135.08,0.6649957]
[1767605882193,3.34950217,135.15,135.1,0.6649957]
[1767605882404,3.34950217,135.15,135.11,0.6649957]
[1767605882600,3.34950217,135.15,135.12,14.1449957]
[1767605882900,3.34950217,135.14,135.12,10.30186666]
[1767605883988,3.34950217,135.13,135.12,9.63687096]
[1767605885096,3.34950217,135.14,135.12,10.30186666]
[1767605885303,3.34950217,135.13,135.12,9.63687096]
[1767605886992,3.34950217,135.14,135.12,9.63687096]
[1767605889602,0.65346601,135.15,135.12,9.63687096]
[1767605889909,3.34950217,135.14,135.12,9.63687096]
[1767605891602,4.00296818,135.15,135.12,10.30186666]
[1767605893309,3.34950217,135.15,135.13,0.6649957]
[1767605893482,3.9981317,135.15,135.12,9.63687096]
[1767605894497,3.9981317,135.15,135.12,10.30186666]
[1767605897190,3.34950217,135.14,135.12,10.30186666]
[1767605898412,0.64862953,135.15,135.12,10.30186666]
[1767605898710,3.9981317,135.15,135.12,10.30186666]
[1767605898911,3.34950217,135.14,135.12,10.30186666]
[1767605903510,3.52410893,135.14,135.12,9.63687096]
[1767605905221,3.34950217,135.14,135.12,9.46050049]
[1767605905432,3.34950217,135.15,135.12,8.91187096]
[1767605906419,0.9246246,135.19,135.12,16.31249545]
[1767605906721,3.34950217,135.17,135.12,16.31249545]
[1767605908023,3.34950217,135.17,135.13,0.6649957]
[1767605908924,0.9246246,135.19,135.13,0.6649957]
[1767605909096,3.34950217,135.17,135.13,0.6649957]
[1767605911420,0.9246246,135.19,135.13,0.6649957]
[1767605911721,3.34950217,135.17,135.13,0.6649957]
[1767605912931,0.9246246,135.19,135.13,0.6649957]
[1767605913108,3.34950217,135.17,135.13,0.6649957]
[1767605915028,3.34950217,135.16,135.13,0.6649957]
[1767605915508,0.9246246,135.19,135.13,0.6649957]
[1767605915708,3.34950217,135.16,135.13,0.6649957]
[1767605918530,0.9246246,135.19,135.13,0.6649957]
[1767605918720,3.34950217,135.17,135.14,0.70562987]
[1767605919031,3.34950217,135.17,135.15,13.48]
[1767605919606,3.34950217,135.17,135.15,14.12562992]
[1767605920925,3.34950217,135.18,135.16,0.70562987]
[1767605921131,3.34950217,135.18,135.15,13.42000005]
[1767605921132,3.34950217,135.18,135.15,14.12562992]
[1767605924016,3.34950217,135.18,135.16,13.48]
[1767605924213,3.34950217,135.18,135.16,11.09725926]
[1767605926437,4.27412677,135.19,135.16,11.09725926]
[1767605926624,4.27412677,135.19,135.16,11.80288913]
[1767605928933,4.27405838,135.2,135.17,0.70562987]
[1767605929134,4.33405834,135.2,135.17,0.64562991]
[1767605929340,4.27399,135.21,135.17,0.64562991]
[1767605929517,3.34950217,135.21,135.17,0.64562991]
[1767605930423,3.40950213,135.21,135.17,0.64562991]
[1767605935918,3.34950217,135.2,135.17,0.64562991]
[1767605936534,2.13856556,135.2,135.17,0.64562991]
[1767605937131,2.19856552,135.21,135.17,0.64562991]
[1767605937339,0.05999996,135.21,135.18,0.71258984]
[1767605937538,2.19856552,135.21,135.19,13.48]
[1767605937739,2.19856552,135.21,135.19,13.42000001]
[1767605938453,2.13856556,135.21,135.19,13.42000001]
[1767605938621,2.23756556,135.22,135.19,13.42000001]
[1767605939538,2.23756556,135.22,135.19,14.13258985]
[1767605940448,0.11999994,135.23,135.2,0.71258984]
[1767605940620,2.13856556,135.22,135.2,0.65258985]
[1767605940823,0.65487093,135.23,135.2,0.65258985]
[1767605941136,1.41356556,135.22,135.19,13.42000001]
[1767605941316,2.13856556,135.22,135.19,13.42000001]
[1767605941522,1.5822987,135.24,135.19,13.42000001]
[1767605941743,2.79658151,135.22,135.19,13.42000001]
[1767605942061,2.13856556,135.22,135.2,0.67245107]
[1767605942368,1.19583389,135.21,135.19,14.09245108]
[1767605943267,1.19583389,135.21,135.17,19.49786947]
[1767605943268,3.06284831,135.24,135.2,14.13245107]
[1767605943463,3.06284831,135.24,135.17,12.1]
[1767605943464,0.65801595,135.23,135.19,13.46]
[1767605943754,0.92441946,135.22,135.19,13.46]
[1767605944260,2.13856556,135.21,135.19,13.46]
[1767605945044,1.58236705,135.23,135.19,13.46]
[1767605945244,1.19014069,135.22,135.19,13.46]
[1767605945960,1.19014069,135.22,135.18,7.39751013]
[1767605946143,1.19014069,135.22,135.19,13.46]
[1767605946344,7.39422417,135.24,135.19,0.65801595]
[1767605946557,2.13856556,135.21,135.19,13.46]
[1767605948457,2.13856556,135.21,135.2,0.65801595]
[1767605948646,2.13856556,135.21,135.19,13.46]
[1767605949166,1.48054961,135.21,135.2,0.65801595]
[1767605949469,2.13856556,135.22,135.19,13.46]
[1767605950364,2.13856556,135.22,135.17,7.39789423]
[1767605950664,2.13856556,135.22,135.18,13.46]
[1767605951053,0.65801595,135.21,135.18,13.46]
[1767605951355,2.13856556,135.22,135.18,13.46]
[1767605952475,2.13856556,135.23,135.18,20.85704419]
[1767605952973,0.65801595,135.22,135.18,20.85704419]
[1767605953164,2.13856556,135.23,135.18,20.85704419]
[1767605953551,0.65801595,135.24,135.21,2.13856556]
[1767605954270,0.65801595,135.27,135.23,4.27713112]
[1767605954491,0.1,135.29,135.26,2.13856556]
[1767605954648,0.1,135.29,135.28,2.13856556]
[1767605955550,0.1,135.29,135.28,0.68856556]
[1767605955750,0.1,135.29,135.28,0.62856561]
[1767605956167,4.68080015,135.3,135.28,0.62856561]
[1767605956547,5.3388161,135.3,135.28,0.62856561]
[1767605956743,0.23162841,135.29,135.25,0.67245107]
[1767605956976,12.72980121,135.3,135.26,2.81101663]
[1767605957152,0.23162841,135.29,135.26,2.13856556]
[1767605957351,12.30341367,135.3,135.26,2.81101663]
[1767605957580,12.30341367,135.3,135.27,2.13856556]
[1767605958679,12.30341367,135.3,135.26,2.81101663]
[1767605959059,0.65375208,135.29,135.26,2.81101663]
[1767605960063,0.65375208,135.29,135.26,2.13856556]
[1767605960863,0.65375208,135.29,135.27,1.90033359]
[1767605961253,4.68080015,135.3,135.27,2.57278466]
[1767605961461,4.68080015,135.3,135.28,2.81101663]
[1767605961853,0.54920455,135.29,135.28,2.03401803]
[1767605962054,5.1300047,135.3,135.28,2.03401803]
[1767605962389,4.68080015,135.3,135.28,0.67245107]
[1767605962676,4.68080015,135.3,135.29,0.67245107]
[1767605962877,0.1,135.31,135.29,0.67245107]
[1767605963188,0.1,135.31,135.28,2.81101663]
[1767605964975,0.1,135.31,135.28,0.67245107]
[1767605965159,0.199,135.31,135.27,2.13856556]
[1767605965368,0.3467025,135.3,135.27,2.13856556]
[1767605966069,0.099,135.3,135.25,0.67245107]
[1767605966273,0.099,135.3,135.25,14.13245107]
[1767605966591,0.099,135.3,135.26,2.81101663]
[1767605967263,9.62946418,135.31,135.27,0.67245107]
[1767605967457,7.49089862,135.31,135.27,0.67245107]
[1767605967657,7.49089862,135.31,135.27,2.81101663]
[1767605969258,7.49089862,135.31,135.27,2.13856556]
[1767605969460,7.49089862,135.31,135.27,2.81101663]
[1767605969660,7.49089862,135.31,135.27,2.13856556]
[1767605969962,7.49089862,135.31,135.26,2.81101663]
[1767605970163,0.1,135.31,135.26,2.81101663]
[1767605970891,0.1,135.31,135.24,13.46]
[1767605970892,2.13856556,135.28,135.24,0.66150788]
[1767605971189,0.1,135.31,135.23,14.90007344]
[1767605971359,2.13856556,135.28,135.23,14.90007344]
[1767605971773,0.1,135.31,135.23,14.90007344]
[1767605972087,2.13856556,135.28,135.23,14.90007344]
[1767605972471,7.39236447,135.28,135.23,2.80007344]
[1767605972673,9.53093003,135.28,135.23,2.80007344]
[1767605973266,7.39236447,135.28,135.23,2.80007344]
[1767605973474,2.13856556,135.29,135.23,2.80007344]
[1767605974187,20.61654601,135.3,135.25,0.66150788]
[1767605974565,7.49043677,135.31,135.25,2.80007344]
[1767605974874,9.62900233,135.31,135.26,0.66150788]
[1767605975687,7.49043677,135.31,135.26,0.66150788]
[1767605976189,2.13856556,135.3,135.25,2.80007344]
[1767605976388,2.13856556,135.3,135.25,0.66150788]
[1767605976687,2.13856556,135.3,135.25,2.80007344]
[1767605977285,2.13856556,135.3,135.24,2.80007344]
[1767605977286,9.52993907,135.3,135.24,2.80007344]
[1767605977673,9.52993907,135.3,135.25,0.66150788]
[1767605978179,9.52993907,135.3,135.24,2.80007344]
[1767605978686,25.9665287,135.31,135.24,2.80007344]
[1767605978986,2.13856556,135.3,135.24,2.80007344]
[1767605979188,2.13856556,135.3,135.25,0.66150788]
[1767605979383,25.9665287,135.31,135.25,0.66150788]
[1767605979575,2.13856556,135.3,135.25,0.66150788]
[1767605979974,25.9665287,135.31,135.26,2.13856556]
[1767605980377,25.9665287,135.31,135.25,0.66150788]
[1767605980378,7.49043677,135.31,135.27,0.66150788]
[1767605980592,0.1,135.31,135.28,0.66150788]
[1767605981294,0.1,135.31,135.29,0.66150788]
[1767605984381,0.1,135.31,135.29,2.80007344]
[1767605984789,0.1,135.31,135.3,0.66150788]
[1767605985881,0.1,135.31,135.29,0.66150788]
[1767605990278,0.1,135.31,135.27,0.66150788]
[1767605990479,2.23856556,135.31,135.27,0.66150788]
[1767605990878,2.13856556,135.3,135.27,0.66150788]
[1767605991092,2.13856556,135.3,135.25,0.66150788]
[1767605991275,0.1,135.31,135.26,0.66150788]
[1767605991476,2.23856556,135.31,135.26,0.66150788]
[1767605992577,9.62912991,135.31,135.26,0.66150788]
[1767605992777,7.49056435,135.31,135.26,0.66150788]
[1767605992996,9.62912991,135.31,135.26,0.66150788]
[1767605993180,2.13856556,135.3,135.26,0.66150788]
[1767605993503,2.13856556,135.3,135.24,0.70955911]
[1767605993710,2.13856556,135.3,135.25,0.70955911]
[1767605994424,9.52962792,135.3,135.25,0.70955911]
[1767605996216,2.13856556,135.3,135.25,0.70955911]
[1767605998494,3.33797519,135.29,135.25,0.70955911]
[1767605998703,0.1,135.31,135.25,0.70955911]
[1767605999008,3.33797519,135.29,135.25,0.70955911]
[1767605999206,3.43797519,135.31,135.26,0.70955911]
[1767605999718,3.33797519,135.3,135.26,0.70955911]
[1767606002320,10.7290406,135.3,135.26,0.70955911]
[1767606003614,0.1,135.31,135.26,0.70955911]
[1767606003913,3.33797519,135.3,135.26,0.70955911]
[1767606004306,3.33797519,135.27,135.24,0.65565838]
[1767606004527,3.33797519,135.27,135.22,0.73953557]
[1767606004528,3.33797519,135.26,135.21,0.65565838]
[1767606004819,3.33797519,135.3,135.26,0.65565838]
[1767606005002,16.89797519,135.31,135.26,0.65565838]
[1767606005417,13.56,135.31,135.27,0.65565838]
[1767606005917,20.95044367,135.31,135.27,0.65565838]
[1767606008113,13.56,135.31,135.27,3.99363357]
[1767606008311,13.56,135.31,135.28,0.65565838]
[1767606008696,13.56,135.31,135.29,0.65565838]
[1767606009791,0.1,135.31,135.29,0.65565838]
[1767606014314,0.1,135.31,135.27,3.99363357]
[1767606015020,0.1,135.31,135.29,0.65565838]
[1767606015824,0.1,135.31,135.3,0.65565838]
[1767606016024,0.1,135.31,135.3,3.99363357]
[1767606016414,0.1,135.33,135.3,3.99363357]
[1767606018238,0.1,135.33,135.3,0.65565838]